fUSD/lending_fUSD_20251215
["ID","MTS","AMOUNT","RATE_DAILY","PERIOD"]
[398538492,1765810249088,-344.352426,0.00018082,2]
[398538493,1765810249097,-151.0,0.00018082,2]
[398538494,1765810249106,-151.0,0.00018082,2]
[398538495,1765810249116,-344.352426,0.00018082,2]
[398538496,1765810249125,-182.039087,0.00018082,2]
[398538497,1765810249134,-181.320463,0.00018082,2]
[398538498,1765810249143,-182.039087,0.00018082,2]
[398538499,1765810249154,-344.352426,0.00018082,2]
[398538500,1765810249167,-344.352426,0.00018082,2]
[398538501,1765810249176,-151.0,0.00018082,2]
[398538502,1765810249186,-151.0,0.00018082,2]
[398538503,1765810249197,-151.0,0.00018082,2]
[398538504,1765810249206,-151.0,0.00018082,2]
[398538505,1765810249216,-151.0,0.00018082,2]
[398538506,1765810249226,-549.529895,0.00018082,2]
[398538507,1765810249237,-151.0,0.00018082,2]
[398538508,1765810249247,-151.0,0.00018082,2]
[398538509,1765810249256,-549.529895,0.00018082,2]
[398538510,1765810249266,-173.893912,0.00018082,2]
[398538511,1765810249276,-173.893912,0.00018082,2]
[398538512,1765810249286,-549.529895,0.00018082,2]
[398538513,1765810249295,-173.893912,0.00018082,2]
[398538514,1765810249305,-919.548798,0.00018082,2]
[398538515,1765810249315,-549.529895,0.00018082,2]
[398538516,1765810249324,-919.548798,0.00018082,2]
[398538517,1765810249334,-173.893912,0.00018082,2]
[398538518,1765810249343,-274.152015,0.00018082,2]
[398538519,1765810249353,-293.773689,0.00018082,2]
[398538520,1765810249362,-274.152015,0.00018082,2]
[398538521,1765810249371,-293.773689,0.00018082,2]
[398538522,1765810249381,-274.152015,0.00018082,2]
[398538523,1765810249391,-293.773689,0.00018082,2]
[398538524,1765810249401,-274.152015,0.00018082,2]
[398538525,1765810249411,-293.773689,0.00018082,2]
[398538526,1765810249422,-233.979331,0.00018082,2]
[398538527,1765810249431,-919.548798,0.00018082,2]
[398538528,1765810249444,-233.979331,0.00018082,2]
[398538529,1765810249454,-919.548798,0.00018082,2]
[398538530,1765810249464,-233.979331,0.00018082,2]
[398538531,1765810249473,-151.0,0.00018082,2]
[398538532,1765810249483,-151.0,0.00018082,2]
[398538533,1765810249492,-151.0,0.00018082,2]
[398538534,1765810249503,-159.793049,0.00018082,2]
[398538535,1765810249512,-207.032753,0.00018082,2]
[398538536,1765810249522,-4647.583261,0.00018082,2]
[398538537,1765810249531,-159.793049,0.00018082,2]
[398538538,1765810249541,-205.903496,0.00018082,2]
[398538539,1765810249550,-159.793049,0.00018082,2]
[398538540,1765810249559,-4647.583261,0.00018082,2]
[398538541,1765810249569,-309.117231,0.00018082,2]
[398538542,1765810249578,-171.221128,0.00018082,2]
[398538543,1765810249588,-159.793049,0.00018082,2]
[398538544,1765810249597,-4647.583261,0.00018082,2]
[398538545,1765810249607,-151.0,0.00018082,2]
[398538546,1765810249616,-309.117231,0.00018082,2]
[398538547,1765810249625,-4647.583261,0.00018082,2]
[398538548,1765810249634,-309.117231,0.00018082,2]
[398538549,1765810249644,-309.117231,0.00018082,2]
[398538550,1765810249653,-1000.0,0.00018082,2]
[398538551,1765810249663,-300.0,0.00018082,2]
[398538552,1765810249673,-150.0,0.00018082,2]
[398538553,1765810249683,-170.46,0.00018082,2]
[398538554,1765810249696,-631.28,0.00018095,6]
[398538555,1765810249705,-1266.2,0.00018096,2]
[398538556,1765810249714,-1771.17625499,0.000181,2]
[398538557,1765810249724,-168.0,0.00018121,2]
[398538558,1765810249734,-420.0,0.00018136,2]
[398538559,1765810249744,-182.06,0.00018139,2]
[398538560,1765810249754,-333.76691119,0.00018139,2]
[398538561,1765810249764,-150.0,0.00018142,2]
[398538562,1765810249774,-166.89,0.00018161,2]
[398538563,1765810249784,-299.32,0.00018162,2]
[398538564,1765810249793,-150.0,0.00018163,2]
[398538565,1765810249803,-150.0,0.00018163,2]
[398538566,1765810249812,-150.0,0.00018163,2]
[398538567,1765810249822,-150.0,0.00018163,2]
[398538568,1765810249832,-150.0,0.00018163,2]
[398538569,1765810249841,-150.0,0.00018163,2]
[398538570,1765810249851,-150.0,0.00018163,2]
[398538571,1765810249860,-150.0,0.00018163,2]
[398538572,1765810249870,-150.0,0.00018163,2]
[398538573,1765810249880,-151.72,0.00018199,2]
[398538574,1765810249889,-13468.95550883,0.000182,2]
[398538575,1765810249899,-170.46,0.00018201,2]
[398538576,1765810249908,-311.1,0.00018203,2]
[398538577,1765810249917,-500.0,0.00018206,2]
[398538578,1765810249927,-576.0,0.00018206,2]
[398538579,1765810249937,-500.0,0.00018206,2]
[398538580,1765810249949,-558.0,0.00018206,2]
[398538581,1765810249958,-3608.41323,0.0001821,2]
[398538582,1765810249968,-500.0,0.00018219,2]
[398538583,1765810249977,-150.0,0.00018227,2]
[398538584,1765810249987,-162.22892314,0.00018233,2]
[398538585,1765810249996,-152.650889,0.0001824,2]
[398538586,1765810250006,-151.0,0.0001824,2]
[398538587,1765810250015,-151.0,0.0001824,2]
[398538588,1765810250025,-151.0,0.0001824,2]
[398538589,1765810250034,-151.0,0.0001824,2]
[398538590,1765810250043,-151.0,0.0001824,2]
[398538591,1765810250053,-151.0,0.0001824,2]
[398538592,1765810250063,-151.0,0.0001824,2]
[398538593,1765810250072,-151.0,0.0001824,2]
[398538594,1765810250082,-151.0,0.0001824,2]
[398538595,1765810250091,-151.0,0.0001824,2]
[398538596,1765810250101,-151.0,0.0001824,2]
[398538597,1765810250110,-151.0,0.0001824,2]
[398538598,1765810250120,-156.8913,0.0001824,2]
[398538599,1765810250129,-151.0,0.0001824,2]
[398538600,1765810250139,-151.0,0.0001824,2]
[398538601,1765810250148,-151.0,0.0001824,2]
[398538602,1765810250160,-245.548938,0.0001824,2]
[398538603,1765810250170,-151.0,0.0001824,2]
[398538604,1765810250180,-151.0,0.0001824,2]
[398538605,1765810250193,-151.0,0.0001824,2]
[398538606,1765810250202,-151.0,0.0001824,2]
[398538607,1765810250211,-156.849783,0.0001824,2]
[398538608,1765810250221,-151.0,0.0001824,2]
[398538609,1765810250231,-151.0,0.0001824,2]
[398538610,1765810250240,-151.0,0.0001824,2]
[398538611,1765810250250,-151.0,0.0001824,2]
[398538612,1765810250259,-151.0,0.0001824,2]
[398538613,1765810250269,-151.0,0.0001824,2]
[398538614,1765810250278,-151.0,0.0001824,2]
[398538615,1765810250287,-237.898705,0.0001824,2]
[398538616,1765810250297,-237.898705,0.0001824,2]
[398538617,1765810250306,-237.898705,0.0001824,2]
[398538618,1765810250316,-237.898705,0.0001824,2]
[398538619,1765810250326,-658.528015,0.0001824,2]
[398538620,1765810250335,-658.528015,0.0001824,2]
[398538621,1765810250345,-658.528015,0.0001824,2]
[398538622,1765810250354,-658.528015,0.0001824,2]
[398538623,1765810250364,-151.0,0.0001824,2]
[398538624,1765810250373,-151.0,0.0001824,2]
[398538625,1765810250383,-151.0,0.0001824,2]
[398538626,1765810250392,-1000.0,0.000183,3]
[398538627,1765810250402,-882.60614022,0.00018303,2]
[398538628,1765810250411,-207.53803982,0.00018326,2]
[398538629,1765810250421,-382.07221643,0.00018328,2]
[398538630,1765810250430,-249.87817541,0.00018329,2]
[398538631,1765810250440,-500.0,0.00018329,2]
[398538632,1765810250449,-207.18201818,0.00018329,2]
[398538633,1765810250459,-239.35846839,0.00018329,2]
[398538634,1765810250469,-500.0,0.00018329,2]
[398538635,1765810250478,-304.5266766,0.00018329,2]
[398538636,1765810250489,-500.0,0.00018343,2]
[398538637,1765810250498,-576.0,0.00018343,2]
[398538638,1765810250508,-500.0,0.00018343,2]
[398538639,1765810250518,-558.0,0.00018343,2]
[398538640,1765810250527,-256.4,0.00018351,2]
[398538641,1765810250537,-150.0,0.00018353,2]
[398538642,1765810250547,-150.0,0.00018353,2]
[398538643,1765810250557,-150.0,0.00018353,2]
[398538644,1765810250567,-500.0,0.00018356,2]
[398538645,1765810250577,-151.0,0.00018356,2]
[398538646,1765810250587,-251.774238,0.00018356,2]
[398538647,1765810250597,-251.774238,0.00018356,2]
[398538648,1765810250607,-251.774238,0.00018356,2]
[398538649,1765810250617,-172.248334,0.00018356,2]
[398538650,1765810250627,-251.774238,0.00018356,2]
[398538651,1765810250637,-172.248334,0.00018356,2]
[398538652,1765810250646,-172.248334,0.00018356,2]
[398538653,1765810250655,-172.248334,0.00018356,2]
[398538654,1765810250667,-151.0,0.00018356,2]
[398538655,1765810250677,-151.0,0.00018356,2]
[398538656,1765810250687,-451.838025,0.00018356,2]
[398538657,1765810250702,-451.838025,0.00018356,2]
[398538658,1765810250712,-451.838025,0.00018356,2]
[398538659,1765810250722,-451.838025,0.00018356,2]
[398538660,1765810250732,-166.525158,0.00018356,2]
[398538661,1765810250741,-166.525158,0.00018356,2]
[398538662,1765810250750,-166.525158,0.00018356,2]
[398538663,1765810250759,-166.525158,0.00018356,2]
[398538664,1765810250769,-45247.50678954,0.00018356,2]
[398538665,1765810253412,500.0,0.00015692,2]
[398538666,1765810253490,-220.0,0.00017216,2]
[398538667,1765810253500,-240.71535664,0.00018051,2]
[398538668,1765810253511,-2185.28464336,0.00018051,2]
[398538669,1765810253520,-445.3620541,0.00018082,2]
[398538670,1765810253531,-98.5564899,0.00018082,2]
[398538671,1765810253541,-1514.36522088,0.00018356,2]
[398538672,1765810253556,-267.470874,0.00018356,2]
[398538673,1765810253769,-154.0,0.00017251,2]
[398538674,1765810253778,-175.31297903,0.00017384,2]
[398538675,1765810253788,-1.63514529,0.00018082,2]
[398538676,1765810253807,-542.28339871,0.00018082,2]
[398538677,1765810253817,-543.918544,0.00018082,2]
[398538678,1765810253827,-151.0,0.00018082,2]
[398538679,1765810253837,-2274.00133172,0.00018356,2]
[398538680,1765810253848,-1844.3429684,0.00018356,2]
[398538681,1765810253868,-521.53540251,0.00018356,2]
[398538682,1765810253887,-2222.65175904,0.00018356,2]
[398538683,1765810253898,-31914.75307183,0.00018356,2]
[398538684,1765810253910,-2245.11258208,0.00018356,2]
[398538685,1765810253920,-631.28,0.00018369,7]
[398538686,1765810253930,-1266.2,0.0001837,2]
[398538687,1765810253942,-1574.0,0.0001843,2]
[398538688,1765810253953,-500.0,0.00018431,2]
[398538689,1765810253963,-500.0,0.00018431,2]
[398538690,1765810253973,-500.0,0.00018431,2]
[398538691,1765810253983,-500.0,0.00018431,2]
[398538692,1765810253993,-500.0,0.00018431,2]
[398538693,1765810254002,-500.0,0.00018431,2]
[398538694,1765810254012,-500.0,0.00018431,2]
[398538695,1765810254022,-500.0,0.00018432,2]
[398538696,1765810254039,-13468.95550883,0.00018433,2]
[398538697,1765810254049,-500.0,0.00018462,2]
[398538698,1765810254058,-998.0,0.00018478,2]
[398538699,1765810254068,-500.0,0.0001848,2]
[398538700,1765810254077,-576.0,0.0001848,2]
[398538701,1765810254088,-500.0,0.0001848,2]
[398538702,1765810254101,-558.0,0.0001848,2]
[398538703,1765810254111,-170.48,0.00018491,2]
[398538704,1765810254120,-500.0,0.00018493,2]
[398538705,1765810254129,-500.0,0.000185,2]
[398538706,1765810254139,-150.0,0.00018512,2]
[398538707,1765810254149,-150.0,0.00018564,2]
[398538708,1765810254162,-162.22892314,0.00018567,2]
[398538709,1765810254171,-882.60614022,0.00018601,2]
[398538710,1765810254180,-150.0,0.00018607,2]
[398538711,1765810254190,-543.7,0.00018614,2]
[398538712,1765810254204,-1000.0,0.00018615,2]
[398538713,1765810254214,-500.0,0.00018617,2]
[398538714,1765810254224,-576.0,0.00018617,2]
[398538715,1765810254233,-500.0,0.00018617,2]
[398538716,1765810254243,-558.0,0.00018617,2]
[398538717,1765810254252,-1574.0,0.0001862,2]
[398538718,1765810254263,-500.0,0.0001863,2]
[398538719,1765810254272,-631.28,0.00018643,8]
[398538720,1765810254282,-1266.2,0.00018644,2]
[398538721,1765810254292,-13468.95550883,0.00018667,2]
[398538722,1765810254301,-150.0,0.0001867,2]
[398538723,1765810254311,-2498.61,0.000187,2]
[398538724,1765810254321,-1000.0,0.00018708,2]
[398538725,1765810254331,-1000.0,0.00018708,2]
[398538726,1765810254341,-1000.0,0.00018708,2]
[398538727,1765810254350,-1000.0,0.00018708,2]
[398538728,1765810254360,-1000.0,0.00018708,2]
[398538729,1765810254370,-1000.0,0.00018708,2]
[398538730,1765810254379,-1000.0,0.00018708,2]
[398538731,1765810255061,-709.11842642,0.00018708,2]
[398538732,1765810255112,-600.0,0.00018708,2]
[398538733,1765810255131,-3608.41323,0.0001871,2]
[398538734,1765810255141,-500.0,0.00018754,2]
[398538735,1765810255152,-576.0,0.00018754,2]
[398538736,1765810255161,-500.0,0.00018754,2]
[398538737,1765810255170,-558.0,0.00018754,2]
[398538738,1765810255180,-1000.0,0.0001876,2]
[398538739,1765810255191,-500.0,0.00018767,2]
[398538740,1765810255200,-150.0,0.00018775,2]
[398538741,1765810255210,-150.92,0.000188,2]
[398538742,1765810255219,-150.92,0.000188,2]
[398538743,1765810255229,-150.92,0.000188,2]
[398538744,1765810255239,-150.92,0.000188,2]
[398538745,1765810255247,-150.92,0.000188,2]
[398538746,1765810255256,-150.92,0.000188,2]
[398538747,1765810255266,-150.92,0.000188,2]
[398538748,1765810255275,-150.92,0.000188,2]
[398538749,1765810255284,-150.92,0.000188,2]
[398538750,1765810255293,-150.92,0.000188,2]
[398538751,1765810255302,-150.92,0.000188,2]
[398538752,1765810255311,-150.92,0.000188,2]
[398538753,1765810255321,-150.92,0.000188,2]
[398538754,1765810255330,-150.92,0.000188,2]
[398538755,1765810255339,-1574.0,0.0001881,2]
[398538756,1765810255348,-201.94121469,0.00018844,3]
[398538757,1765810255357,-117.05510351,0.00018872,2]
[398538817,1765810446408,500.0,0.00015692,2]
[398538824,1765810535308,168.26,0.00013078,2]
[398538835,1765810743108,415.07920537,0.00015,2]
[398538836,1765810801065,3495.87,7.963e-05,2]
[398538837,1765810801282,3495.87,8.382e-05,2]
[398538838,1765810801735,3495.87,8.801e-05,2]
[398538839,1765810801944,3495.87,9.22e-05,2]
[398538840,1765810802174,3495.87,9.639e-05,2]
[398538841,1765810806250,3495.87,0.00010058,2]
[398538842,1765810806296,3495.87,0.00010478,2]
[398538843,1765810806427,3495.87,0.00010897,2]
[398538844,1765810806479,3495.87,0.00011316,2]
[398538845,1765810806543,3495.87,0.00011735,2]
[398538846,1765810806585,3495.87,0.00012154,2]
[398538847,1765810806631,3495.87,0.00012573,2]
[398538848,1765810806680,3495.87,0.00012992,2]
[398538849,1765810806728,3495.87,0.00013411,2]
[398538850,1765810806786,3495.87,0.0001383,2]
[398538851,1765810806834,3495.87,0.00014249,2]
[398538852,1765810806867,3495.87,0.00014669,2]
[398538853,1765810806953,3495.87,0.00015088,2]
[398538854,1765810807004,3495.87,0.00015507,2]
[398538855,1765810810948,194.66731831,0.00011525,2]
[398538872,1765810979273,200.0,0.00015616,3]
[398538892,1765811058136,-325.97213978,0.00015737,2]
[398538893,1765811061366,-198.06934917,0.00015737,2]
[398538894,1765811063256,-325.96215154,0.00015737,2]
[398538895,1765811066398,-149.99635951,0.00015737,2]
[398538896,1765811066422,-132.4690373,0.00015753,3]
[398538953,1765811276643,-216.38189013,0.00015744,2]
[398538964,1765811311378,3301.0,0.000225,120]
[398538965,1765811319273,-387.71318301,0.00015744,2]
[398538966,1765811324484,-350.03531202,0.00015744,2]
[398538967,1765811327181,-254.38512817,0.00015744,2]
[398538985,1765811431987,-52.33551442,0.00015744,2]
[398538986,1765811431997,-1260.85102774,0.00015772,2]
[398538987,1765811432007,-213.20413884,0.00015786,2]
[398538988,1765811432017,-239.47311133,0.000158,2]
[398538989,1765811432029,-546.45096683,0.000158,2]
[398538990,1765811432041,-474.92694958,0.000158,2]
[398538991,1765811432052,-195.0,0.00015803,2]
[398538992,1765811432062,-300.0,0.00015803,2]
[398538993,1765811432071,-300.0,0.00015843,2]
[398538994,1765811432081,-300.0,0.00015843,2]
[398538995,1765811432090,-1200.0,0.00015843,2]
[398538996,1765811432100,-300.0,0.00015843,2]
[398538997,1765811432109,-1200.0,0.00015844,2]
[398538998,1765811432117,-300.0,0.00015844,2]
[398538999,1765811432127,-500.0,0.00015845,2]
[398539000,1765811432139,-500.0,0.00015845,2]
[398539001,1765811432148,-500.0,0.00015845,2]
[398539002,1765811432157,-500.0,0.00015845,2]
[398539003,1765811432166,-500.0,0.00015845,2]
[398539004,1765811432176,-500.0,0.00015845,2]
[398539005,1765811432186,-500.0,0.00015845,2]
[398539006,1765811432195,-500.0,0.00015845,2]
[398539007,1765811432205,-500.0,0.00015845,2]
[398539008,1765811432214,-500.0,0.00015845,2]
[398539009,1765811432223,-155.40031236,0.00015845,2]
[398539010,1765811432233,-500.0,0.00015845,2]
[398539011,1765811432242,-500.0,0.00015845,2]
[398539012,1765811432251,-500.0,0.00015845,2]
[398539013,1765811432260,-500.0,0.00015845,2]
[398539015,1765811432269,-315.48152004,0.00015845,2]
[398539017,1765811432279,-20950.79551467,0.00015846,2]
[398539019,1765811432294,-53624.61448533,0.00015846,2]
[398539020,1765811432304,-352.85296963,0.000159,2]
[398539021,1765811432313,-1600.0,0.00015919,2]
[398539023,1765811432322,-3495.87,0.00015926,2]
[398539025,1765811432331,-500.0,0.00016173,2]
[398539026,1765811432340,-500.0,0.00016173,2]
[398539027,1765811432350,-211.15105206,0.00016248,2]
[398539028,1765811432359,-352.85296963,0.00016248,2]
[398539029,1765811432368,-2208.32,0.00016271,2]
[398539030,1765811432377,-11782.69645277,0.00016338,2]
[398539031,1765811432389,-168.26,0.00016348,2]
[398539032,1765811432399,-200.0,0.0001636,2]
[398539033,1765811432408,-500.0,0.00016437,2]
[398539034,1765811432417,-150.08038427,0.00016437,2]
[398539035,1765811432427,-309.86490912,0.00016437,2]
[398539036,1765811432436,-640.60478716,0.00016438,2]
[398539037,1765811432445,-1299.24463909,0.00016438,2]
[398539038,1765811432455,-1299.24463909,0.00016438,2]
[398539039,1765811432464,-1299.24463909,0.00016438,2]
[398539040,1765811432474,-1299.24463909,0.00016438,2]
[398539041,1765811432483,-1299.24463909,0.00016438,2]
[398539042,1765811432494,-1299.24463909,0.00016438,2]
[398539043,1765811432504,-1299.24463909,0.00016438,2]
[398539044,1765811432514,-1299.24463909,0.00016438,2]
[398539045,1765811432523,-1299.24463909,0.00016438,2]
[398539046,1765811432533,-1299.24463909,0.00016438,2]
[398539047,1765811432543,-1299.24463909,0.00016438,2]
[398539048,1765811432552,-1299.24463909,0.00016438,2]
[398539049,1765811432561,-1299.24463909,0.00016438,2]
[398539050,1765811432571,-1299.24463909,0.00016438,2]
[398539051,1765811432581,-1299.24463909,0.00016438,2]
[398539052,1765811432590,-1299.24463909,0.00016438,2]
[398539053,1765811432604,-1299.24463909,0.00016438,2]
[398539054,1765811432613,-1299.24463909,0.00016438,2]
[398539055,1765811432622,-1299.24463909,0.00016438,2]
[398539056,1765811432631,-1299.24463909,0.00016438,2]
[398539057,1765811432644,-1299.24463909,0.00016438,2]
[398539058,1765811432654,-1299.24463909,0.00016438,2]
[398539059,1765811432663,-1299.24463909,0.00016438,2]
[398539060,1765811432672,-1299.24463909,0.00016438,2]
[398539061,1765811432682,-1299.24463909,0.00016438,2]
[398539062,1765811432692,-1299.24463909,0.00016438,2]
[398539063,1765811432702,-1299.24463909,0.00016438,2]
[398539064,1765811432711,-1299.24463909,0.00016438,2]
[398539065,1765811432721,-1299.24463909,0.00016438,2]
[398539066,1765811432730,-1299.24463909,0.00016438,2]
[398539067,1765811432739,-1299.24463909,0.00016438,2]
[398539068,1765811432749,-1299.24463909,0.00016438,2]
[398539069,1765811432759,-1299.24463909,0.00016438,2]
[398539070,1765811432768,-1299.24463909,0.00016438,2]
[398539071,1765811432777,-1299.24463909,0.00016438,2]
[398539072,1765811432786,-1299.24463909,0.00016438,2]
[398539073,1765811432796,-1299.24463909,0.00016438,2]
[398539074,1765811432805,-1299.24463909,0.00016438,2]
[398539075,1765811432814,-1299.24463909,0.00016438,2]
[398539076,1765811432825,-1299.24463909,0.00016438,2]
[398539077,1765811432834,-1299.24463909,0.00016438,2]
[398539078,1765811432844,-1299.24463909,0.00016438,2]
[398539079,1765811432854,-1299.24463909,0.00016438,2]
[398539080,1765811432863,-1299.24463909,0.00016438,2]
[398539081,1765811432872,-1299.24463909,0.00016438,2]
[398539082,1765811432882,-1299.24463909,0.00016438,2]
[398539083,1765811432895,-1299.24463909,0.00016438,2]
[398539084,1765811432904,-1299.24463909,0.00016438,2]
[398539085,1765811432913,-1299.24463909,0.00016438,2]
[398539086,1765811432922,-1299.24463909,0.00016438,2]
[398539087,1765811432932,-1299.24463909,0.00016438,2]
[398539088,1765811432941,-1299.24463909,0.00016438,2]
[398539089,1765811432951,-1299.24463909,0.00016438,2]
[398539090,1765811432960,-1299.24463909,0.00016438,2]
[398539091,1765811432968,-1299.24463909,0.00016438,2]
[398539092,1765811432978,-1299.24463909,0.00016438,2]
[398539093,1765811432988,-1299.24463909,0.00016438,2]
[398539094,1765811432997,-1289.77098027,0.00016438,2]
[398539095,1765811433006,-1289.77098027,0.00016438,2]
[398539096,1765811433016,-1289.77098027,0.00016438,2]
[398539097,1765811433025,-1289.77098027,0.00016438,2]
[398539098,1765811433034,-1289.77098027,0.00016438,2]
[398539099,1765811433043,-1289.77098027,0.00016438,2]
[398539100,1765811433053,-1289.77098027,0.00016438,2]
[398539101,1765811433062,-1289.77098027,0.00016438,2]
[398539102,1765811433072,-1289.77098027,0.00016438,2]
[398539103,1765811433090,-1289.77098027,0.00016438,2]
[398539104,1765811433101,-1289.77098027,0.00016438,2]
[398539105,1765811433111,-1289.77098027,0.00016438,2]
[398539106,1765811433120,-1289.77098027,0.00016438,2]
[398539107,1765811433129,-1289.77098027,0.00016438,2]
[398539108,1765811433141,-1289.77098027,0.00016438,2]
[398539109,1765811433150,-1289.77098027,0.00016438,2]
[398539110,1765811433159,-1289.77098027,0.00016438,2]
[398539111,1765811433169,-1289.77098027,0.00016438,2]
[398539112,1765811433178,-1289.77098027,0.00016438,2]
[398539113,1765811433188,-1289.77098027,0.00016438,2]
[398539114,1765811433197,-1289.77098027,0.00016438,2]
[398539115,1765811433206,-1289.77098027,0.00016438,2]
[398539116,1765811433215,-1289.77098027,0.00016438,2]
[398539117,1765811433224,-1289.77098027,0.00016438,2]
[398539118,1765811433233,-1289.77098027,0.00016438,2]
[398539119,1765811433243,-1289.77098027,0.00016438,2]
[398539120,1765811433252,-1323.89190567,0.00016438,2]
[398539121,1765811433262,-1323.89190567,0.00016438,2]
[398539122,1765811433271,-1323.89190567,0.00016438,2]
[398539123,1765811433281,-1323.89190567,0.00016438,2]
[398539124,1765811433290,-1323.89190567,0.00016438,2]
[398539125,1765811433299,-1323.89190567,0.00016438,2]
[398539126,1765811433309,-1323.89190567,0.00016438,2]
[398539127,1765811433318,-1477.23,0.00016438,2]
[398539128,1765811433327,-500.0,0.00016438,2]
[398539129,1765811433337,-11782.69645269,0.00016623,2]
[398539130,1765811433347,-176.3394,0.00016698,2]
[398539131,1765811433356,-1477.23,0.00016712,2]
[398539132,1765811433366,-500.0,0.00016721,2]
[398539133,1765811433375,-500.0,0.00016721,2]
[398539134,1765811433384,-2736.378,0.00016734,2]
[398539135,1765811433396,-167.795,0.00016734,2]
[398539136,1765811433406,-5026.2487959,0.00016734,2]
[398539137,1765811433415,-773.27679032,0.00016734,2]
[398539138,1765811433424,-151.0,0.00016784,2]
[398539139,1765811433433,-151.0,0.00016784,2]
[398539140,1765811433442,-151.0,0.00016784,2]
[398539141,1765811433451,-151.0,0.00016784,2]
[398539142,1765811433460,-151.0,0.00016784,2]
[398539143,1765811433470,-151.0,0.00016784,2]
[398539144,1765811433479,-151.0,0.00016784,2]
[398539145,1765811433488,-151.0,0.00016784,2]
[398539146,1765811433498,-151.0,0.00016784,2]
[398539147,1765811433507,-204.1206432,0.00016784,2]
[398539148,1765811433516,-200.0,0.00016784,2]
[398539149,1765811433525,-249.87817541,0.00016798,2]
[398539150,1765811433534,-500.0,0.00016798,2]
[398539151,1765811433543,-207.18201818,0.00016798,2]
[398539152,1765811433552,-597.37719482,0.00016798,5]
[398539153,1765811433562,-151.0,0.00016883,2]
[398539154,1765811433571,-553.64373807,0.00016883,2]
[398539155,1765811433580,-1000.0,0.00016883,2]
[398539156,1765811433589,-1000.0,0.00016883,2]
[398539157,1765811433599,-441.06037252,0.00016883,2]
[398539158,1765811433612,-300.0,0.00016883,2]
[398539159,1765811433621,-6342.7430142,0.00016897,2]
[398539160,1765811433631,-500.0,0.00016898,2]
[398539161,1765811433642,-239.35846839,0.00016898,2]
[398539162,1765811433651,-500.0,0.00016898,2]
[398539163,1765811433661,-382.07221643,0.00016898,2]
[398539164,1765811433671,-577.94882703,0.00016898,2]
[398539165,1765811433682,-532.30126089,0.00016898,2]
[398539166,1765811433691,-500.0,0.00016898,2]
[398539167,1765811433700,-422.65917297,0.00016898,2]
[398539168,1765811433709,-500.0,0.00016898,2]
[398539169,1765811433719,-500.0,0.00016898,2]
[398539170,1765811433728,-500.0,0.00016898,2]
[398539171,1765811433738,-500.0,0.00016898,2]
[398539172,1765811433747,-500.0,0.00016898,2]
[398539173,1765811433756,-500.0,0.00016898,2]
[398539174,1765811433766,-500.0,0.00016898,2]
[398539175,1765811433776,-11782.69645269,0.00016907,2]
[398539176,1765811433786,-510.0,0.00016969,2]
[398539177,1765811433795,-5026.24879584,0.00016975,2]
[398539178,1765811433805,-552.37,0.00016986,2]
[398539179,1765811433814,-1477.23,0.00016986,2]
[398539180,1765811433824,-304.5266766,0.00016999,2]
[398539181,1765811433833,-500.0,0.00016999,2]
[398539182,1765811433842,-238.0,0.00016999,2]
[398539183,1765811433851,-250.0,0.00017,2]
[398539184,1765811433861,-627.7,0.00017036,2]
[398539185,1765811433870,-773.27679028,0.00017043,2]
[398539186,1765811433880,-150.0,0.00017088,2]
[398539187,1765811433890,-150.0,0.00017088,2]
[398539188,1765811433900,-150.0,0.00017088,2]
[398539189,1765811433909,-150.0,0.00017088,2]